{"text_format":"3","workbook":"xlsx","n_sheets":3,"sheets":["Liidien tiedot","Ennustettu myynti ","Kuukausit. painotettu ennuste"],"not_rendered":{"charts":1,"defined_names":10},"read":"whole","date_system":"1900"}

{"sheet":"Liidien tiedot","index":0,"n_rows":9,"n_cols":10,"rows_kept":9,"merged":[[3,1,3,8]]}
[null,"Yrityksen nimi"]
[null,"Yksityiskohtainen liidien seuranta"]
[null,{"$f":"TODAY()","v":"2018-07-24"}]
[null,{"$f":"Yrityksen_nimi","v":"Yrityksen nimi"},{"$nulls":7},"LUOTTAMUKSELLINEN"]
[null,"Liidin nimi","Liidin yhteystieto","Liidin lähde","Liidin alue","Liidin tyyppi","Potentiaalinen mahdollisuus","Mahdollisuus \nmyyntiin","Ennusteen päättyminen","Painotettu ennuste"]
[null,"A. Datum Corporation",{"$nulls":3},"Strateginen",{"v":300000,"d":"300,000.00 €"},{"v":0.9,"d":"90%"},"tammikuu",{"$f":"IFERROR(IF(Liidin_tiedot[Mahdollisuus \nmyyntiin]<>\"\",Liidin_tiedot[Mahdollisuus \nmyyntiin]*Liidin_tiedot[Potentiaalinen mahdollisuus],\"\"),\"\")","v":{"v":270000,"d":"270,000.00 €"}}]
[null,"Adventure Works",{"$nulls":3},"Strateginen",{"v":200000,"d":"200,000.00 €"},{"v":0.1,"d":"10%"},"helmikuu",{"$f":"IFERROR(IF(Liidin_tiedot[Mahdollisuus \nmyyntiin]<>\"\",Liidin_tiedot[Mahdollisuus \nmyyntiin]*Liidin_tiedot[Potentiaalinen mahdollisuus],\"\"),\"\")","v":{"v":20000,"d":"20,000.00 €"}}]
[null,"Alpine Ski House",{"$nulls":3},"Taktinen",{"v":100000,"d":"100,000.00 €"},{"v":0.2,"d":"20%"},"maaliskuu",{"$f":"IFERROR(IF(Liidin_tiedot[Mahdollisuus \nmyyntiin]<>\"\",Liidin_tiedot[Mahdollisuus \nmyyntiin]*Liidin_tiedot[Potentiaalinen mahdollisuus],\"\"),\"\")","v":{"v":20000,"d":"20,000.00 €"}}]
[null,"Yhteensä",{"$nulls":4},{"$f":"SUBTOTAL(109,Liidin_tiedot[Potentiaalinen mahdollisuus])","v":{"v":600000,"d":"600,000.00 €"}},null,null,{"$f":"SUBTOTAL(109,Liidin_tiedot[Painotettu ennuste])","v":{"v":310000,"d":"310,000.00 €"}}]

{"sheet":"Ennustettu myynti ","index":1,"n_rows":21,"n_cols":14,"rows_kept":21,"merged":[[3,1,3,11],[3,12,3,13]]}
[null,{"$f":"Yrityksen_nimi","v":"Yrityksen nimi"}]
[null,"Ennustettu myynti"]
[null,{"$f":"Seurantapäivä","v":"2018-07-24"}]
[null,{"$f":"Yrityksen_nimi","v":"Yrityksen nimi"},{"$nulls":10},"LUOTTAMUKSELLINEN"]
[null,"Liidin nimi","tammikuun\nennuste","helmikuun \nennuste","maaliskuun \nennuste","huhtikuun \nennuste","toukokuun \nennuste","kesäkuun \nennuste","heinäkuun ennuste","elokuun \nennuste","syyskuun \nennuste","lokakuun \nennuste","marraskuun \nennuste","joulukuun \nennuste"]
[null,{"$f":"IFERROR(IF(AND(Liidin_tiedot[Liidin nimi] <> \"\", ROW(Ennustettu_myynti[Liidin nimi])<>Viimeinen_syöte),Liidin_tiedot[Liidin nimi], \"\"),\"\")","v":"A. Datum Corporation"},{"$f":"IFERROR(IF(Liidin_tiedot[Ennusteen päättyminen] <>\"\",IF(Liidin_tiedot[Ennusteen päättyminen]= \"tammikuu\",Liidin_tiedot[Painotettu ennuste],0),\"\"),\"\")","v":{"v":270000,"d":"270,000 €"}},{"$f":"IFERROR(IF(Liidin_tiedot[Ennusteen päättyminen] <>\"\",IF(Liidin_tiedot[Ennusteen päättyminen] = \"helmikuu\",Liidin_tiedot[Painotettu ennuste],0),\"\"),\"\")","v":{"v":0,"d":"0 €"}},{"$f":"IFERROR(IF(Liidin_tiedot[Ennusteen päättyminen] <>\"\",IF(Liidin_tiedot[Ennusteen päättyminen] = \"maaliskuu\",Liidin_tiedot[Painotettu ennuste],0),\"\"),\"\")","v":{"v":0,"d":"0 €"}},{"$f":"IFERROR(IF(Liidin_tiedot[Ennusteen päättyminen] <>\"\",IF(Liidin_tiedot[Ennusteen päättyminen] = \"huhtikuu\",Liidin_tiedot[Painotettu ennuste],0),\"\"),\"\")","v":{"v":0,"d":"0 €"}},{"$f":"IFERROR(IF(Liidin_tiedot[Ennusteen päättyminen] <>\"\",IF(Liidin_tiedot[Ennusteen päättyminen] = \"toukokuu\",Liidin_tiedot[Painotettu ennuste],0),\"\"),\"\")","v":{"v":0,"d":"0 €"}},{"$f":"IFERROR(IF(Liidin_tiedot[Ennusteen päättyminen] <>\"\",IF(Liidin_tiedot[Ennusteen päättyminen] = \"kesäkuu\",Liidin_tiedot[Painotettu ennuste],0),\"\"),\"\")","v":{"v":0,"d":"0 €"}},{"$f":"IFERROR(IF(Liidin_tiedot[Ennusteen päättyminen] <>\"\",IF(Liidin_tiedot[Ennusteen päättyminen] = \"heinäkuu\",Liidin_tiedot[Painotettu ennuste],0),\"\"),\"\")","v":{"v":0,"d":"0 €"}},{"$f":"IFERROR(IF(Liidin_tiedot[Ennusteen päättyminen] <>\"\",IF(Liidin_tiedot[Ennusteen päättyminen] = \"elokuu\",Liidin_tiedot[Painotettu ennuste],0),\"\"),\"\")","v":{"v":0,"d":"0 €"}},{"$f":"IFERROR(IF(Liidin_tiedot[Ennusteen päättyminen] <>\"\",IF(Liidin_tiedot[Ennusteen päättyminen] = \"syyskuu\",Liidin_tiedot[Painotettu ennuste],0),\"\"),\"\")","v":{"v":0,"d":"0 €"}},{"$f":"IFERROR(IF(Liidin_tiedot[Ennusteen päättyminen] <>\"\",IF(Liidin_tiedot[Ennusteen päättyminen] = \"lokakuu\",Liidin_tiedot[Painotettu ennuste],0),\"\"),\"\")","v":{"v":0,"d":"0 €"}},{"$f":"IFERROR(IF(Liidin_tiedot[Ennusteen päättyminen] <>\"\",IF(Liidin_tiedot[Ennusteen päättyminen] = \"marraskuu\",Liidin_tiedot[Painotettu ennuste],0),\"\"),\"\")","v":{"v":0,"d":"0 €"}},{"$f":"IFERROR(IF(Liidin_tiedot[Ennusteen päättyminen] <>\"\",IF(Liidin_tiedot[Ennusteen päättyminen] = \"joulukuu\",Liidin_tiedot[Painotettu ennuste],0),\"\"),\"\")","v":{"v":0,"d":"0 €"}}]
[null,{"$f":"IFERROR(IF(AND(Liidin_tiedot[Liidin nimi] <> \"\", ROW(Ennustettu_myynti[Liidin nimi])<>Viimeinen_syöte),Liidin_tiedot[Liidin nimi], \"\"),\"\")","v":"Adventure Works"},{"$f":"IFERROR(IF(Liidin_tiedot[Ennusteen päättyminen] <>\"\",IF(Liidin_tiedot[Ennusteen päättyminen]= \"tammikuu\",Liidin_tiedot[Painotettu ennuste],0),\"\"),\"\")","v":{"v":0,"d":"0 €"}},{"$f":"IFERROR(IF(Liidin_tiedot[Ennusteen päättyminen] <>\"\",IF(Liidin_tiedot[Ennusteen päättyminen] = \"helmikuu\",Liidin_tiedot[Painotettu ennuste],0),\"\"),\"\")","v":{"v":20000,"d":"20,000 €"}},{"$f":"IFERROR(IF(Liidin_tiedot[Ennusteen päättyminen] <>\"\",IF(Liidin_tiedot[Ennusteen päättyminen] = \"maaliskuu\",Liidin_tiedot[Painotettu ennuste],0),\"\"),\"\")","v":{"v":0,"d":"0 €"}},{"$f":"IFERROR(IF(Liidin_tiedot[Ennusteen päättyminen] <>\"\",IF(Liidin_tiedot[Ennusteen päättyminen] = \"huhtikuu\",Liidin_tiedot[Painotettu ennuste],0),\"\"),\"\")","v":{"v":0,"d":"0 €"}},{"$f":"IFERROR(IF(Liidin_tiedot[Ennusteen päättyminen] <>\"\",IF(Liidin_tiedot[Ennusteen päättyminen] = \"toukokuu\",Liidin_tiedot[Painotettu ennuste],0),\"\"),\"\")","v":{"v":0,"d":"0 €"}},{"$f":"IFERROR(IF(Liidin_tiedot[Ennusteen päättyminen] <>\"\",IF(Liidin_tiedot[Ennusteen päättyminen] = \"kesäkuu\",Liidin_tiedot[Painotettu ennuste],0),\"\"),\"\")","v":{"v":0,"d":"0 €"}},{"$f":"IFERROR(IF(Liidin_tiedot[Ennusteen päättyminen] <>\"\",IF(Liidin_tiedot[Ennusteen päättyminen] = \"heinäkuu\",Liidin_tiedot[Painotettu ennuste],0),\"\"),\"\")","v":{"v":0,"d":"0 €"}},{"$f":"IFERROR(IF(Liidin_tiedot[Ennusteen päättyminen] <>\"\",IF(Liidin_tiedot[Ennusteen päättyminen] = \"elokuu\",Liidin_tiedot[Painotettu ennuste],0),\"\"),\"\")","v":{"v":0,"d":"0 €"}},{"$f":"IFERROR(IF(Liidin_tiedot[Ennusteen päättyminen] <>\"\",IF(Liidin_tiedot[Ennusteen päättyminen] = \"syyskuu\",Liidin_tiedot[Painotettu ennuste],0),\"\"),\"\")","v":{"v":0,"d":"0 €"}},{"$f":"IFERROR(IF(Liidin_tiedot[Ennusteen päättyminen] <>\"\",IF(Liidin_tiedot[Ennusteen päättyminen] = \"lokakuu\",Liidin_tiedot[Painotettu ennuste],0),\"\"),\"\")","v":{"v":0,"d":"0 €"}},{"$f":"IFERROR(IF(Liidin_tiedot[Ennusteen päättyminen] <>\"\",IF(Liidin_tiedot[Ennusteen päättyminen] = \"marraskuu\",Liidin_tiedot[Painotettu ennuste],0),\"\"),\"\")","v":{"v":0,"d":"0 €"}},{"$f":"IFERROR(IF(Liidin_tiedot[Ennusteen päättyminen] <>\"\",IF(Liidin_tiedot[Ennusteen päättyminen] = \"joulukuu\",Liidin_tiedot[Painotettu ennuste],0),\"\"),\"\")","v":{"v":0,"d":"0 €"}}]
[null,{"$f":"IFERROR(IF(AND(Liidin_tiedot[Liidin nimi] <> \"\", ROW(Ennustettu_myynti[Liidin nimi])<>Viimeinen_syöte),Liidin_tiedot[Liidin nimi], \"\"),\"\")","v":"Alpine Ski House"},{"$f":"IFERROR(IF(Liidin_tiedot[Ennusteen päättyminen] <>\"\",IF(Liidin_tiedot[Ennusteen päättyminen]= \"tammikuu\",Liidin_tiedot[Painotettu ennuste],0),\"\"),\"\")","v":{"v":0,"d":"0 €"}},{"$f":"IFERROR(IF(Liidin_tiedot[Ennusteen päättyminen] <>\"\",IF(Liidin_tiedot[Ennusteen päättyminen] = \"helmikuu\",Liidin_tiedot[Painotettu ennuste],0),\"\"),\"\")","v":{"v":0,"d":"0 €"}},{"$f":"IFERROR(IF(Liidin_tiedot[Ennusteen päättyminen] <>\"\",IF(Liidin_tiedot[Ennusteen päättyminen] = \"maaliskuu\",Liidin_tiedot[Painotettu ennuste],0),\"\"),\"\")","v":{"v":20000,"d":"20,000 €"}},{"$f":"IFERROR(IF(Liidin_tiedot[Ennusteen päättyminen] <>\"\",IF(Liidin_tiedot[Ennusteen päättyminen] = \"huhtikuu\",Liidin_tiedot[Painotettu ennuste],0),\"\"),\"\")","v":{"v":0,"d":"0 €"}},{"$f":"IFERROR(IF(Liidin_tiedot[Ennusteen päättyminen] <>\"\",IF(Liidin_tiedot[Ennusteen päättyminen] = \"toukokuu\",Liidin_tiedot[Painotettu ennuste],0),\"\"),\"\")","v":{"v":0,"d":"0 €"}},{"$f":"IFERROR(IF(Liidin_tiedot[Ennusteen päättyminen] <>\"\",IF(Liidin_tiedot[Ennusteen päättyminen] = \"kesäkuu\",Liidin_tiedot[Painotettu ennuste],0),\"\"),\"\")","v":{"v":0,"d":"0 €"}},{"$f":"IFERROR(IF(Liidin_tiedot[Ennusteen päättyminen] <>\"\",IF(Liidin_tiedot[Ennusteen päättyminen] = \"heinäkuu\",Liidin_tiedot[Painotettu ennuste],0),\"\"),\"\")","v":{"v":0,"d":"0 €"}},{"$f":"IFERROR(IF(Liidin_tiedot[Ennusteen päättyminen] <>\"\",IF(Liidin_tiedot[Ennusteen päättyminen] = \"elokuu\",Liidin_tiedot[Painotettu ennuste],0),\"\"),\"\")","v":{"v":0,"d":"0 €"}},{"$f":"IFERROR(IF(Liidin_tiedot[Ennusteen päättyminen] <>\"\",IF(Liidin_tiedot[Ennusteen päättyminen] = \"syyskuu\",Liidin_tiedot[Painotettu ennuste],0),\"\"),\"\")","v":{"v":0,"d":"0 €"}},{"$f":"IFERROR(IF(Liidin_tiedot[Ennusteen päättyminen] <>\"\",IF(Liidin_tiedot[Ennusteen päättyminen] = \"lokakuu\",Liidin_tiedot[Painotettu ennuste],0),\"\"),\"\")","v":{"v":0,"d":"0 €"}},{"$f":"IFERROR(IF(Liidin_tiedot[Ennusteen päättyminen] <>\"\",IF(Liidin_tiedot[Ennusteen päättyminen] = \"marraskuu\",Liidin_tiedot[Painotettu ennuste],0),\"\"),\"\")","v":{"v":0,"d":"0 €"}},{"$f":"IFERROR(IF(Liidin_tiedot[Ennusteen päättyminen] <>\"\",IF(Liidin_tiedot[Ennusteen päättyminen] = \"joulukuu\",Liidin_tiedot[Painotettu ennuste],0),\"\"),\"\")","v":{"v":0,"d":"0 €"}}]
[null,{"$f":"IFERROR(IF(AND(Liidin_tiedot[Liidin nimi] <> \"\", ROW(Ennustettu_myynti[Liidin nimi])<>Viimeinen_syöte),Liidin_tiedot[Liidin nimi], \"\"),\"\")","v":""},{"$f":"IFERROR(IF(Liidin_tiedot[Ennusteen päättyminen] <>\"\",IF(Liidin_tiedot[Ennusteen päättyminen]= \"tammikuu\",Liidin_tiedot[Painotettu ennuste],0),\"\"),\"\")","v":""},{"$f":"IFERROR(IF(Liidin_tiedot[Ennusteen päättyminen] <>\"\",IF(Liidin_tiedot[Ennusteen päättyminen] = \"helmikuu\",Liidin_tiedot[Painotettu ennuste],0),\"\"),\"\")","v":""},{"$f":"IFERROR(IF(Liidin_tiedot[Ennusteen päättyminen] <>\"\",IF(Liidin_tiedot[Ennusteen päättyminen] = \"maaliskuu\",Liidin_tiedot[Painotettu ennuste],0),\"\"),\"\")","v":""},{"$f":"IFERROR(IF(Liidin_tiedot[Ennusteen päättyminen] <>\"\",IF(Liidin_tiedot[Ennusteen päättyminen] = \"huhtikuu\",Liidin_tiedot[Painotettu ennuste],0),\"\"),\"\")","v":""},{"$f":"IFERROR(IF(Liidin_tiedot[Ennusteen päättyminen] <>\"\",IF(Liidin_tiedot[Ennusteen päättyminen] = \"toukokuu\",Liidin_tiedot[Painotettu ennuste],0),\"\"),\"\")","v":""},{"$f":"IFERROR(IF(Liidin_tiedot[Ennusteen päättyminen] <>\"\",IF(Liidin_tiedot[Ennusteen päättyminen] = \"kesäkuu\",Liidin_tiedot[Painotettu ennuste],0),\"\"),\"\")","v":""},{"$f":"IFERROR(IF(Liidin_tiedot[Ennusteen päättyminen] <>\"\",IF(Liidin_tiedot[Ennusteen päättyminen] = \"heinäkuu\",Liidin_tiedot[Painotettu ennuste],0),\"\"),\"\")","v":""},{"$f":"IFERROR(IF(Liidin_tiedot[Ennusteen päättyminen] <>\"\",IF(Liidin_tiedot[Ennusteen päättyminen] = \"elokuu\",Liidin_tiedot[Painotettu ennuste],0),\"\"),\"\")","v":""},{"$f":"IFERROR(IF(Liidin_tiedot[Ennusteen päättyminen] <>\"\",IF(Liidin_tiedot[Ennusteen päättyminen] = \"syyskuu\",Liidin_tiedot[Painotettu ennuste],0),\"\"),\"\")","v":""},{"$f":"IFERROR(IF(Liidin_tiedot[Ennusteen päättyminen] <>\"\",IF(Liidin_tiedot[Ennusteen päättyminen] = \"lokakuu\",Liidin_tiedot[Painotettu ennuste],0),\"\"),\"\")","v":""},{"$f":"IFERROR(IF(Liidin_tiedot[Ennusteen päättyminen] <>\"\",IF(Liidin_tiedot[Ennusteen päättyminen] = \"marraskuu\",Liidin_tiedot[Painotettu ennuste],0),\"\"),\"\")","v":""},{"$f":"IFERROR(IF(Liidin_tiedot[Ennusteen päättyminen] <>\"\",IF(Liidin_tiedot[Ennusteen päättyminen] = \"joulukuu\",Liidin_tiedot[Painotettu ennuste],0),\"\"),\"\")","v":""}]
[null,{"$f":"IFERROR(IF(AND(Liidin_tiedot[Liidin nimi] <> \"\", ROW(Ennustettu_myynti[Liidin nimi])<>Viimeinen_syöte),Liidin_tiedot[Liidin nimi], \"\"),\"\")","v":""},{"$f":"IFERROR(IF(Liidin_tiedot[Ennusteen päättyminen] <>\"\",IF(Liidin_tiedot[Ennusteen päättyminen]= \"tammikuu\",Liidin_tiedot[Painotettu ennuste],0),\"\"),\"\")","v":""},{"$f":"IFERROR(IF(Liidin_tiedot[Ennusteen päättyminen] <>\"\",IF(Liidin_tiedot[Ennusteen päättyminen] = \"helmikuu\",Liidin_tiedot[Painotettu ennuste],0),\"\"),\"\")","v":""},{"$f":"IFERROR(IF(Liidin_tiedot[Ennusteen päättyminen] <>\"\",IF(Liidin_tiedot[Ennusteen päättyminen] = \"maaliskuu\",Liidin_tiedot[Painotettu ennuste],0),\"\"),\"\")","v":""},{"$f":"IFERROR(IF(Liidin_tiedot[Ennusteen päättyminen] <>\"\",IF(Liidin_tiedot[Ennusteen päättyminen] = \"huhtikuu\",Liidin_tiedot[Painotettu ennuste],0),\"\"),\"\")","v":""},{"$f":"IFERROR(IF(Liidin_tiedot[Ennusteen päättyminen] <>\"\",IF(Liidin_tiedot[Ennusteen päättyminen] = \"toukokuu\",Liidin_tiedot[Painotettu ennuste],0),\"\"),\"\")","v":""},{"$f":"IFERROR(IF(Liidin_tiedot[Ennusteen päättyminen] <>\"\",IF(Liidin_tiedot[Ennusteen päättyminen] = \"kesäkuu\",Liidin_tiedot[Painotettu ennuste],0),\"\"),\"\")","v":""},{"$f":"IFERROR(IF(Liidin_tiedot[Ennusteen päättyminen] <>\"\",IF(Liidin_tiedot[Ennusteen päättyminen] = \"heinäkuu\",Liidin_tiedot[Painotettu ennuste],0),\"\"),\"\")","v":""},{"$f":"IFERROR(IF(Liidin_tiedot[Ennusteen päättyminen] <>\"\",IF(Liidin_tiedot[Ennusteen päättyminen] = \"elokuu\",Liidin_tiedot[Painotettu ennuste],0),\"\"),\"\")","v":""},{"$f":"IFERROR(IF(Liidin_tiedot[Ennusteen päättyminen] <>\"\",IF(Liidin_tiedot[Ennusteen päättyminen] = \"syyskuu\",Liidin_tiedot[Painotettu ennuste],0),\"\"),\"\")","v":""},{"$f":"IFERROR(IF(Liidin_tiedot[Ennusteen päättyminen] <>\"\",IF(Liidin_tiedot[Ennusteen päättyminen] = \"lokakuu\",Liidin_tiedot[Painotettu ennuste],0),\"\"),\"\")","v":""},{"$f":"IFERROR(IF(Liidin_tiedot[Ennusteen päättyminen] <>\"\",IF(Liidin_tiedot[Ennusteen päättyminen] = \"marraskuu\",Liidin_tiedot[Painotettu ennuste],0),\"\"),\"\")","v":""},{"$f":"IFERROR(IF(Liidin_tiedot[Ennusteen päättyminen] <>\"\",IF(Liidin_tiedot[Ennusteen päättyminen] = \"joulukuu\",Liidin_tiedot[Painotettu ennuste],0),\"\"),\"\")","v":""}]
[null,{"$f":"IFERROR(IF(AND(Liidin_tiedot[Liidin nimi] <> \"\", ROW(Ennustettu_myynti[Liidin nimi])<>Viimeinen_syöte),Liidin_tiedot[Liidin nimi], \"\"),\"\")","v":""},{"$f":"IFERROR(IF(Liidin_tiedot[Ennusteen päättyminen] <>\"\",IF(Liidin_tiedot[Ennusteen päättyminen]= \"tammikuu\",Liidin_tiedot[Painotettu ennuste],0),\"\"),\"\")","v":""},{"$f":"IFERROR(IF(Liidin_tiedot[Ennusteen päättyminen] <>\"\",IF(Liidin_tiedot[Ennusteen päättyminen] = \"helmikuu\",Liidin_tiedot[Painotettu ennuste],0),\"\"),\"\")","v":""},{"$f":"IFERROR(IF(Liidin_tiedot[Ennusteen päättyminen] <>\"\",IF(Liidin_tiedot[Ennusteen päättyminen] = \"maaliskuu\",Liidin_tiedot[Painotettu ennuste],0),\"\"),\"\")","v":""},{"$f":"IFERROR(IF(Liidin_tiedot[Ennusteen päättyminen] <>\"\",IF(Liidin_tiedot[Ennusteen päättyminen] = \"huhtikuu\",Liidin_tiedot[Painotettu ennuste],0),\"\"),\"\")","v":""},{"$f":"IFERROR(IF(Liidin_tiedot[Ennusteen päättyminen] <>\"\",IF(Liidin_tiedot[Ennusteen päättyminen] = \"toukokuu\",Liidin_tiedot[Painotettu ennuste],0),\"\"),\"\")","v":""},{"$f":"IFERROR(IF(Liidin_tiedot[Ennusteen päättyminen] <>\"\",IF(Liidin_tiedot[Ennusteen päättyminen] = \"kesäkuu\",Liidin_tiedot[Painotettu ennuste],0),\"\"),\"\")","v":""},{"$f":"IFERROR(IF(Liidin_tiedot[Ennusteen päättyminen] <>\"\",IF(Liidin_tiedot[Ennusteen päättyminen] = \"heinäkuu\",Liidin_tiedot[Painotettu ennuste],0),\"\"),\"\")","v":""},{"$f":"IFERROR(IF(Liidin_tiedot[Ennusteen päättyminen] <>\"\",IF(Liidin_tiedot[Ennusteen päättyminen] = \"elokuu\",Liidin_tiedot[Painotettu ennuste],0),\"\"),\"\")","v":""},{"$f":"IFERROR(IF(Liidin_tiedot[Ennusteen päättyminen] <>\"\",IF(Liidin_tiedot[Ennusteen päättyminen] = \"syyskuu\",Liidin_tiedot[Painotettu ennuste],0),\"\"),\"\")","v":""},{"$f":"IFERROR(IF(Liidin_tiedot[Ennusteen päättyminen] <>\"\",IF(Liidin_tiedot[Ennusteen päättyminen] = \"lokakuu\",Liidin_tiedot[Painotettu ennuste],0),\"\"),\"\")","v":""},{"$f":"IFERROR(IF(Liidin_tiedot[Ennusteen päättyminen] <>\"\",IF(Liidin_tiedot[Ennusteen päättyminen] = \"marraskuu\",Liidin_tiedot[Painotettu ennuste],0),\"\"),\"\")","v":""},{"$f":"IFERROR(IF(Liidin_tiedot[Ennusteen päättyminen] <>\"\",IF(Liidin_tiedot[Ennusteen päättyminen] = \"joulukuu\",Liidin_tiedot[Painotettu ennuste],0),\"\"),\"\")","v":""}]
[null,{"$f":"IFERROR(IF(AND(Liidin_tiedot[Liidin nimi] <> \"\", ROW(Ennustettu_myynti[Liidin nimi])<>Viimeinen_syöte),Liidin_tiedot[Liidin nimi], \"\"),\"\")","v":""},{"$f":"IFERROR(IF(Liidin_tiedot[Ennusteen päättyminen] <>\"\",IF(Liidin_tiedot[Ennusteen päättyminen]= \"tammikuu\",Liidin_tiedot[Painotettu ennuste],0),\"\"),\"\")","v":""},{"$f":"IFERROR(IF(Liidin_tiedot[Ennusteen päättyminen] <>\"\",IF(Liidin_tiedot[Ennusteen päättyminen] = \"helmikuu\",Liidin_tiedot[Painotettu ennuste],0),\"\"),\"\")","v":""},{"$f":"IFERROR(IF(Liidin_tiedot[Ennusteen päättyminen] <>\"\",IF(Liidin_tiedot[Ennusteen päättyminen] = \"maaliskuu\",Liidin_tiedot[Painotettu ennuste],0),\"\"),\"\")","v":""},{"$f":"IFERROR(IF(Liidin_tiedot[Ennusteen päättyminen] <>\"\",IF(Liidin_tiedot[Ennusteen päättyminen] = \"huhtikuu\",Liidin_tiedot[Painotettu ennuste],0),\"\"),\"\")","v":""},{"$f":"IFERROR(IF(Liidin_tiedot[Ennusteen päättyminen] <>\"\",IF(Liidin_tiedot[Ennusteen päättyminen] = \"toukokuu\",Liidin_tiedot[Painotettu ennuste],0),\"\"),\"\")","v":""},{"$f":"IFERROR(IF(Liidin_tiedot[Ennusteen päättyminen] <>\"\",IF(Liidin_tiedot[Ennusteen päättyminen] = \"kesäkuu\",Liidin_tiedot[Painotettu ennuste],0),\"\"),\"\")","v":""},{"$f":"IFERROR(IF(Liidin_tiedot[Ennusteen päättyminen] <>\"\",IF(Liidin_tiedot[Ennusteen päättyminen] = \"heinäkuu\",Liidin_tiedot[Painotettu ennuste],0),\"\"),\"\")","v":""},{"$f":"IFERROR(IF(Liidin_tiedot[Ennusteen päättyminen] <>\"\",IF(Liidin_tiedot[Ennusteen päättyminen] = \"elokuu\",Liidin_tiedot[Painotettu ennuste],0),\"\"),\"\")","v":""},{"$f":"IFERROR(IF(Liidin_tiedot[Ennusteen päättyminen] <>\"\",IF(Liidin_tiedot[Ennusteen päättyminen] = \"syyskuu\",Liidin_tiedot[Painotettu ennuste],0),\"\"),\"\")","v":""},{"$f":"IFERROR(IF(Liidin_tiedot[Ennusteen päättyminen] <>\"\",IF(Liidin_tiedot[Ennusteen päättyminen] = \"lokakuu\",Liidin_tiedot[Painotettu ennuste],0),\"\"),\"\")","v":""},{"$f":"IFERROR(IF(Liidin_tiedot[Ennusteen päättyminen] <>\"\",IF(Liidin_tiedot[Ennusteen päättyminen] = \"marraskuu\",Liidin_tiedot[Painotettu ennuste],0),\"\"),\"\")","v":""},{"$f":"IFERROR(IF(Liidin_tiedot[Ennusteen päättyminen] <>\"\",IF(Liidin_tiedot[Ennusteen päättyminen] = \"joulukuu\",Liidin_tiedot[Painotettu ennuste],0),\"\"),\"\")","v":""}]
[null,{"$f":"IFERROR(IF(AND(Liidin_tiedot[Liidin nimi] <> \"\", ROW(Ennustettu_myynti[Liidin nimi])<>Viimeinen_syöte),Liidin_tiedot[Liidin nimi], \"\"),\"\")","v":""},{"$f":"IFERROR(IF(Liidin_tiedot[Ennusteen päättyminen] <>\"\",IF(Liidin_tiedot[Ennusteen päättyminen]= \"tammikuu\",Liidin_tiedot[Painotettu ennuste],0),\"\"),\"\")","v":""},{"$f":"IFERROR(IF(Liidin_tiedot[Ennusteen päättyminen] <>\"\",IF(Liidin_tiedot[Ennusteen päättyminen] = \"helmikuu\",Liidin_tiedot[Painotettu ennuste],0),\"\"),\"\")","v":""},{"$f":"IFERROR(IF(Liidin_tiedot[Ennusteen päättyminen] <>\"\",IF(Liidin_tiedot[Ennusteen päättyminen] = \"maaliskuu\",Liidin_tiedot[Painotettu ennuste],0),\"\"),\"\")","v":""},{"$f":"IFERROR(IF(Liidin_tiedot[Ennusteen päättyminen] <>\"\",IF(Liidin_tiedot[Ennusteen päättyminen] = \"huhtikuu\",Liidin_tiedot[Painotettu ennuste],0),\"\"),\"\")","v":""},{"$f":"IFERROR(IF(Liidin_tiedot[Ennusteen päättyminen] <>\"\",IF(Liidin_tiedot[Ennusteen päättyminen] = \"toukokuu\",Liidin_tiedot[Painotettu ennuste],0),\"\"),\"\")","v":""},{"$f":"IFERROR(IF(Liidin_tiedot[Ennusteen päättyminen] <>\"\",IF(Liidin_tiedot[Ennusteen päättyminen] = \"kesäkuu\",Liidin_tiedot[Painotettu ennuste],0),\"\"),\"\")","v":""},{"$f":"IFERROR(IF(Liidin_tiedot[Ennusteen päättyminen] <>\"\",IF(Liidin_tiedot[Ennusteen päättyminen] = \"heinäkuu\",Liidin_tiedot[Painotettu ennuste],0),\"\"),\"\")","v":""},{"$f":"IFERROR(IF(Liidin_tiedot[Ennusteen päättyminen] <>\"\",IF(Liidin_tiedot[Ennusteen päättyminen] = \"elokuu\",Liidin_tiedot[Painotettu ennuste],0),\"\"),\"\")","v":""},{"$f":"IFERROR(IF(Liidin_tiedot[Ennusteen päättyminen] <>\"\",IF(Liidin_tiedot[Ennusteen päättyminen] = \"syyskuu\",Liidin_tiedot[Painotettu ennuste],0),\"\"),\"\")","v":""},{"$f":"IFERROR(IF(Liidin_tiedot[Ennusteen päättyminen] <>\"\",IF(Liidin_tiedot[Ennusteen päättyminen] = \"lokakuu\",Liidin_tiedot[Painotettu ennuste],0),\"\"),\"\")","v":""},{"$f":"IFERROR(IF(Liidin_tiedot[Ennusteen päättyminen] <>\"\",IF(Liidin_tiedot[Ennusteen päättyminen] = \"marraskuu\",Liidin_tiedot[Painotettu ennuste],0),\"\"),\"\")","v":""},{"$f":"IFERROR(IF(Liidin_tiedot[Ennusteen päättyminen] <>\"\",IF(Liidin_tiedot[Ennusteen päättyminen] = \"joulukuu\",Liidin_tiedot[Painotettu ennuste],0),\"\"),\"\")","v":""}]
[null,{"$f":"IFERROR(IF(AND(Liidin_tiedot[Liidin nimi] <> \"\", ROW(Ennustettu_myynti[Liidin nimi])<>Viimeinen_syöte),Liidin_tiedot[Liidin nimi], \"\"),\"\")","v":""},{"$f":"IFERROR(IF(Liidin_tiedot[Ennusteen päättyminen] <>\"\",IF(Liidin_tiedot[Ennusteen päättyminen]= \"tammikuu\",Liidin_tiedot[Painotettu ennuste],0),\"\"),\"\")","v":""},{"$f":"IFERROR(IF(Liidin_tiedot[Ennusteen päättyminen] <>\"\",IF(Liidin_tiedot[Ennusteen päättyminen] = \"helmikuu\",Liidin_tiedot[Painotettu ennuste],0),\"\"),\"\")","v":""},{"$f":"IFERROR(IF(Liidin_tiedot[Ennusteen päättyminen] <>\"\",IF(Liidin_tiedot[Ennusteen päättyminen] = \"maaliskuu\",Liidin_tiedot[Painotettu ennuste],0),\"\"),\"\")","v":""},{"$f":"IFERROR(IF(Liidin_tiedot[Ennusteen päättyminen] <>\"\",IF(Liidin_tiedot[Ennusteen päättyminen] = \"huhtikuu\",Liidin_tiedot[Painotettu ennuste],0),\"\"),\"\")","v":""},{"$f":"IFERROR(IF(Liidin_tiedot[Ennusteen päättyminen] <>\"\",IF(Liidin_tiedot[Ennusteen päättyminen] = \"toukokuu\",Liidin_tiedot[Painotettu ennuste],0),\"\"),\"\")","v":""},{"$f":"IFERROR(IF(Liidin_tiedot[Ennusteen päättyminen] <>\"\",IF(Liidin_tiedot[Ennusteen päättyminen] = \"kesäkuu\",Liidin_tiedot[Painotettu ennuste],0),\"\"),\"\")","v":""},{"$f":"IFERROR(IF(Liidin_tiedot[Ennusteen päättyminen] <>\"\",IF(Liidin_tiedot[Ennusteen päättyminen] = \"heinäkuu\",Liidin_tiedot[Painotettu ennuste],0),\"\"),\"\")","v":""},{"$f":"IFERROR(IF(Liidin_tiedot[Ennusteen päättyminen] <>\"\",IF(Liidin_tiedot[Ennusteen päättyminen] = \"elokuu\",Liidin_tiedot[Painotettu ennuste],0),\"\"),\"\")","v":""},{"$f":"IFERROR(IF(Liidin_tiedot[Ennusteen päättyminen] <>\"\",IF(Liidin_tiedot[Ennusteen päättyminen] = \"syyskuu\",Liidin_tiedot[Painotettu ennuste],0),\"\"),\"\")","v":""},{"$f":"IFERROR(IF(Liidin_tiedot[Ennusteen päättyminen] <>\"\",IF(Liidin_tiedot[Ennusteen päättyminen] = \"lokakuu\",Liidin_tiedot[Painotettu ennuste],0),\"\"),\"\")","v":""},{"$f":"IFERROR(IF(Liidin_tiedot[Ennusteen päättyminen] <>\"\",IF(Liidin_tiedot[Ennusteen päättyminen] = \"marraskuu\",Liidin_tiedot[Painotettu ennuste],0),\"\"),\"\")","v":""},{"$f":"IFERROR(IF(Liidin_tiedot[Ennusteen päättyminen] <>\"\",IF(Liidin_tiedot[Ennusteen päättyminen] = \"joulukuu\",Liidin_tiedot[Painotettu ennuste],0),\"\"),\"\")","v":""}]
[null,{"$f":"IFERROR(IF(AND(Liidin_tiedot[Liidin nimi] <> \"\", ROW(Ennustettu_myynti[Liidin nimi])<>Viimeinen_syöte),Liidin_tiedot[Liidin nimi], \"\"),\"\")","v":""},{"$f":"IFERROR(IF(Liidin_tiedot[Ennusteen päättyminen] <>\"\",IF(Liidin_tiedot[Ennusteen päättyminen]= \"tammikuu\",Liidin_tiedot[Painotettu ennuste],0),\"\"),\"\")","v":""},{"$f":"IFERROR(IF(Liidin_tiedot[Ennusteen päättyminen] <>\"\",IF(Liidin_tiedot[Ennusteen päättyminen] = \"helmikuu\",Liidin_tiedot[Painotettu ennuste],0),\"\"),\"\")","v":""},{"$f":"IFERROR(IF(Liidin_tiedot[Ennusteen päättyminen] <>\"\",IF(Liidin_tiedot[Ennusteen päättyminen] = \"maaliskuu\",Liidin_tiedot[Painotettu ennuste],0),\"\"),\"\")","v":""},{"$f":"IFERROR(IF(Liidin_tiedot[Ennusteen päättyminen] <>\"\",IF(Liidin_tiedot[Ennusteen päättyminen] = \"huhtikuu\",Liidin_tiedot[Painotettu ennuste],0),\"\"),\"\")","v":""},{"$f":"IFERROR(IF(Liidin_tiedot[Ennusteen päättyminen] <>\"\",IF(Liidin_tiedot[Ennusteen päättyminen] = \"toukokuu\",Liidin_tiedot[Painotettu ennuste],0),\"\"),\"\")","v":""},{"$f":"IFERROR(IF(Liidin_tiedot[Ennusteen päättyminen] <>\"\",IF(Liidin_tiedot[Ennusteen päättyminen] = \"kesäkuu\",Liidin_tiedot[Painotettu ennuste],0),\"\"),\"\")","v":""},{"$f":"IFERROR(IF(Liidin_tiedot[Ennusteen päättyminen] <>\"\",IF(Liidin_tiedot[Ennusteen päättyminen] = \"heinäkuu\",Liidin_tiedot[Painotettu ennuste],0),\"\"),\"\")","v":""},{"$f":"IFERROR(IF(Liidin_tiedot[Ennusteen päättyminen] <>\"\",IF(Liidin_tiedot[Ennusteen päättyminen] = \"elokuu\",Liidin_tiedot[Painotettu ennuste],0),\"\"),\"\")","v":""},{"$f":"IFERROR(IF(Liidin_tiedot[Ennusteen päättyminen] <>\"\",IF(Liidin_tiedot[Ennusteen päättyminen] = \"syyskuu\",Liidin_tiedot[Painotettu ennuste],0),\"\"),\"\")","v":""},{"$f":"IFERROR(IF(Liidin_tiedot[Ennusteen päättyminen] <>\"\",IF(Liidin_tiedot[Ennusteen päättyminen] = \"lokakuu\",Liidin_tiedot[Painotettu ennuste],0),\"\"),\"\")","v":""},{"$f":"IFERROR(IF(Liidin_tiedot[Ennusteen päättyminen] <>\"\",IF(Liidin_tiedot[Ennusteen päättyminen] = \"marraskuu\",Liidin_tiedot[Painotettu ennuste],0),\"\"),\"\")","v":""},{"$f":"IFERROR(IF(Liidin_tiedot[Ennusteen päättyminen] <>\"\",IF(Liidin_tiedot[Ennusteen päättyminen] = \"joulukuu\",Liidin_tiedot[Painotettu ennuste],0),\"\"),\"\")","v":""}]
[null,{"$f":"IFERROR(IF(AND(Liidin_tiedot[Liidin nimi] <> \"\", ROW(Ennustettu_myynti[Liidin nimi])<>Viimeinen_syöte),Liidin_tiedot[Liidin nimi], \"\"),\"\")","v":""},{"$f":"IFERROR(IF(Liidin_tiedot[Ennusteen päättyminen] <>\"\",IF(Liidin_tiedot[Ennusteen päättyminen]= \"tammikuu\",Liidin_tiedot[Painotettu ennuste],0),\"\"),\"\")","v":""},{"$f":"IFERROR(IF(Liidin_tiedot[Ennusteen päättyminen] <>\"\",IF(Liidin_tiedot[Ennusteen päättyminen] = \"helmikuu\",Liidin_tiedot[Painotettu ennuste],0),\"\"),\"\")","v":""},{"$f":"IFERROR(IF(Liidin_tiedot[Ennusteen päättyminen] <>\"\",IF(Liidin_tiedot[Ennusteen päättyminen] = \"maaliskuu\",Liidin_tiedot[Painotettu ennuste],0),\"\"),\"\")","v":""},{"$f":"IFERROR(IF(Liidin_tiedot[Ennusteen päättyminen] <>\"\",IF(Liidin_tiedot[Ennusteen päättyminen] = \"huhtikuu\",Liidin_tiedot[Painotettu ennuste],0),\"\"),\"\")","v":""},{"$f":"IFERROR(IF(Liidin_tiedot[Ennusteen päättyminen] <>\"\",IF(Liidin_tiedot[Ennusteen päättyminen] = \"toukokuu\",Liidin_tiedot[Painotettu ennuste],0),\"\"),\"\")","v":""},{"$f":"IFERROR(IF(Liidin_tiedot[Ennusteen päättyminen] <>\"\",IF(Liidin_tiedot[Ennusteen päättyminen] = \"kesäkuu\",Liidin_tiedot[Painotettu ennuste],0),\"\"),\"\")","v":""},{"$f":"IFERROR(IF(Liidin_tiedot[Ennusteen päättyminen] <>\"\",IF(Liidin_tiedot[Ennusteen päättyminen] = \"heinäkuu\",Liidin_tiedot[Painotettu ennuste],0),\"\"),\"\")","v":""},{"$f":"IFERROR(IF(Liidin_tiedot[Ennusteen päättyminen] <>\"\",IF(Liidin_tiedot[Ennusteen päättyminen] = \"elokuu\",Liidin_tiedot[Painotettu ennuste],0),\"\"),\"\")","v":""},{"$f":"IFERROR(IF(Liidin_tiedot[Ennusteen päättyminen] <>\"\",IF(Liidin_tiedot[Ennusteen päättyminen] = \"syyskuu\",Liidin_tiedot[Painotettu ennuste],0),\"\"),\"\")","v":""},{"$f":"IFERROR(IF(Liidin_tiedot[Ennusteen päättyminen] <>\"\",IF(Liidin_tiedot[Ennusteen päättyminen] = \"lokakuu\",Liidin_tiedot[Painotettu ennuste],0),\"\"),\"\")","v":""},{"$f":"IFERROR(IF(Liidin_tiedot[Ennusteen päättyminen] <>\"\",IF(Liidin_tiedot[Ennusteen päättyminen] = \"marraskuu\",Liidin_tiedot[Painotettu ennuste],0),\"\"),\"\")","v":""},{"$f":"IFERROR(IF(Liidin_tiedot[Ennusteen päättyminen] <>\"\",IF(Liidin_tiedot[Ennusteen päättyminen] = \"joulukuu\",Liidin_tiedot[Painotettu ennuste],0),\"\"),\"\")","v":""}]
[null,{"$f":"IFERROR(IF(AND(Liidin_tiedot[Liidin nimi] <> \"\", ROW(Ennustettu_myynti[Liidin nimi])<>Viimeinen_syöte),Liidin_tiedot[Liidin nimi], \"\"),\"\")","v":""},{"$f":"IFERROR(IF(Liidin_tiedot[Ennusteen päättyminen] <>\"\",IF(Liidin_tiedot[Ennusteen päättyminen]= \"tammikuu\",Liidin_tiedot[Painotettu ennuste],0),\"\"),\"\")","v":""},{"$f":"IFERROR(IF(Liidin_tiedot[Ennusteen päättyminen] <>\"\",IF(Liidin_tiedot[Ennusteen päättyminen] = \"helmikuu\",Liidin_tiedot[Painotettu ennuste],0),\"\"),\"\")","v":""},{"$f":"IFERROR(IF(Liidin_tiedot[Ennusteen päättyminen] <>\"\",IF(Liidin_tiedot[Ennusteen päättyminen] = \"maaliskuu\",Liidin_tiedot[Painotettu ennuste],0),\"\"),\"\")","v":""},{"$f":"IFERROR(IF(Liidin_tiedot[Ennusteen päättyminen] <>\"\",IF(Liidin_tiedot[Ennusteen päättyminen] = \"huhtikuu\",Liidin_tiedot[Painotettu ennuste],0),\"\"),\"\")","v":""},{"$f":"IFERROR(IF(Liidin_tiedot[Ennusteen päättyminen] <>\"\",IF(Liidin_tiedot[Ennusteen päättyminen] = \"toukokuu\",Liidin_tiedot[Painotettu ennuste],0),\"\"),\"\")","v":""},{"$f":"IFERROR(IF(Liidin_tiedot[Ennusteen päättyminen] <>\"\",IF(Liidin_tiedot[Ennusteen päättyminen] = \"kesäkuu\",Liidin_tiedot[Painotettu ennuste],0),\"\"),\"\")","v":""},{"$f":"IFERROR(IF(Liidin_tiedot[Ennusteen päättyminen] <>\"\",IF(Liidin_tiedot[Ennusteen päättyminen] = \"heinäkuu\",Liidin_tiedot[Painotettu ennuste],0),\"\"),\"\")","v":""},{"$f":"IFERROR(IF(Liidin_tiedot[Ennusteen päättyminen] <>\"\",IF(Liidin_tiedot[Ennusteen päättyminen] = \"elokuu\",Liidin_tiedot[Painotettu ennuste],0),\"\"),\"\")","v":""},{"$f":"IFERROR(IF(Liidin_tiedot[Ennusteen päättyminen] <>\"\",IF(Liidin_tiedot[Ennusteen päättyminen] = \"syyskuu\",Liidin_tiedot[Painotettu ennuste],0),\"\"),\"\")","v":""},{"$f":"IFERROR(IF(Liidin_tiedot[Ennusteen päättyminen] <>\"\",IF(Liidin_tiedot[Ennusteen päättyminen] = \"lokakuu\",Liidin_tiedot[Painotettu ennuste],0),\"\"),\"\")","v":""},{"$f":"IFERROR(IF(Liidin_tiedot[Ennusteen päättyminen] <>\"\",IF(Liidin_tiedot[Ennusteen päättyminen] = \"marraskuu\",Liidin_tiedot[Painotettu ennuste],0),\"\"),\"\")","v":""},{"$f":"IFERROR(IF(Liidin_tiedot[Ennusteen päättyminen] <>\"\",IF(Liidin_tiedot[Ennusteen päättyminen] = \"joulukuu\",Liidin_tiedot[Painotettu ennuste],0),\"\"),\"\")","v":""}]
[null,{"$f":"IFERROR(IF(AND(Liidin_tiedot[Liidin nimi] <> \"\", ROW(Ennustettu_myynti[Liidin nimi])<>Viimeinen_syöte),Liidin_tiedot[Liidin nimi], \"\"),\"\")","v":""},{"$f":"IFERROR(IF(Liidin_tiedot[Ennusteen päättyminen] <>\"\",IF(Liidin_tiedot[Ennusteen päättyminen]= \"tammikuu\",Liidin_tiedot[Painotettu ennuste],0),\"\"),\"\")","v":""},{"$f":"IFERROR(IF(Liidin_tiedot[Ennusteen päättyminen] <>\"\",IF(Liidin_tiedot[Ennusteen päättyminen] = \"helmikuu\",Liidin_tiedot[Painotettu ennuste],0),\"\"),\"\")","v":""},{"$f":"IFERROR(IF(Liidin_tiedot[Ennusteen päättyminen] <>\"\",IF(Liidin_tiedot[Ennusteen päättyminen] = \"maaliskuu\",Liidin_tiedot[Painotettu ennuste],0),\"\"),\"\")","v":""},{"$f":"IFERROR(IF(Liidin_tiedot[Ennusteen päättyminen] <>\"\",IF(Liidin_tiedot[Ennusteen päättyminen] = \"huhtikuu\",Liidin_tiedot[Painotettu ennuste],0),\"\"),\"\")","v":""},{"$f":"IFERROR(IF(Liidin_tiedot[Ennusteen päättyminen] <>\"\",IF(Liidin_tiedot[Ennusteen päättyminen] = \"toukokuu\",Liidin_tiedot[Painotettu ennuste],0),\"\"),\"\")","v":""},{"$f":"IFERROR(IF(Liidin_tiedot[Ennusteen päättyminen] <>\"\",IF(Liidin_tiedot[Ennusteen päättyminen] = \"kesäkuu\",Liidin_tiedot[Painotettu ennuste],0),\"\"),\"\")","v":""},{"$f":"IFERROR(IF(Liidin_tiedot[Ennusteen päättyminen] <>\"\",IF(Liidin_tiedot[Ennusteen päättyminen] = \"heinäkuu\",Liidin_tiedot[Painotettu ennuste],0),\"\"),\"\")","v":""},{"$f":"IFERROR(IF(Liidin_tiedot[Ennusteen päättyminen] <>\"\",IF(Liidin_tiedot[Ennusteen päättyminen] = \"elokuu\",Liidin_tiedot[Painotettu ennuste],0),\"\"),\"\")","v":""},{"$f":"IFERROR(IF(Liidin_tiedot[Ennusteen päättyminen] <>\"\",IF(Liidin_tiedot[Ennusteen päättyminen] = \"syyskuu\",Liidin_tiedot[Painotettu ennuste],0),\"\"),\"\")","v":""},{"$f":"IFERROR(IF(Liidin_tiedot[Ennusteen päättyminen] <>\"\",IF(Liidin_tiedot[Ennusteen päättyminen] = \"lokakuu\",Liidin_tiedot[Painotettu ennuste],0),\"\"),\"\")","v":""},{"$f":"IFERROR(IF(Liidin_tiedot[Ennusteen päättyminen] <>\"\",IF(Liidin_tiedot[Ennusteen päättyminen] = \"marraskuu\",Liidin_tiedot[Painotettu ennuste],0),\"\"),\"\")","v":""},{"$f":"IFERROR(IF(Liidin_tiedot[Ennusteen päättyminen] <>\"\",IF(Liidin_tiedot[Ennusteen päättyminen] = \"joulukuu\",Liidin_tiedot[Painotettu ennuste],0),\"\"),\"\")","v":""}]
[null,{"$f":"IFERROR(IF(AND(Liidin_tiedot[Liidin nimi] <> \"\", ROW(Ennustettu_myynti[Liidin nimi])<>Viimeinen_syöte),Liidin_tiedot[Liidin nimi], \"\"),\"\")","v":""},{"$f":"IFERROR(IF(Liidin_tiedot[Ennusteen päättyminen] <>\"\",IF(Liidin_tiedot[Ennusteen päättyminen]= \"tammikuu\",Liidin_tiedot[Painotettu ennuste],0),\"\"),\"\")","v":""},{"$f":"IFERROR(IF(Liidin_tiedot[Ennusteen päättyminen] <>\"\",IF(Liidin_tiedot[Ennusteen päättyminen] = \"helmikuu\",Liidin_tiedot[Painotettu ennuste],0),\"\"),\"\")","v":""},{"$f":"IFERROR(IF(Liidin_tiedot[Ennusteen päättyminen] <>\"\",IF(Liidin_tiedot[Ennusteen päättyminen] = \"maaliskuu\",Liidin_tiedot[Painotettu ennuste],0),\"\"),\"\")","v":""},{"$f":"IFERROR(IF(Liidin_tiedot[Ennusteen päättyminen] <>\"\",IF(Liidin_tiedot[Ennusteen päättyminen] = \"huhtikuu\",Liidin_tiedot[Painotettu ennuste],0),\"\"),\"\")","v":""},{"$f":"IFERROR(IF(Liidin_tiedot[Ennusteen päättyminen] <>\"\",IF(Liidin_tiedot[Ennusteen päättyminen] = \"toukokuu\",Liidin_tiedot[Painotettu ennuste],0),\"\"),\"\")","v":""},{"$f":"IFERROR(IF(Liidin_tiedot[Ennusteen päättyminen] <>\"\",IF(Liidin_tiedot[Ennusteen päättyminen] = \"kesäkuu\",Liidin_tiedot[Painotettu ennuste],0),\"\"),\"\")","v":""},{"$f":"IFERROR(IF(Liidin_tiedot[Ennusteen päättyminen] <>\"\",IF(Liidin_tiedot[Ennusteen päättyminen] = \"heinäkuu\",Liidin_tiedot[Painotettu ennuste],0),\"\"),\"\")","v":""},{"$f":"IFERROR(IF(Liidin_tiedot[Ennusteen päättyminen] <>\"\",IF(Liidin_tiedot[Ennusteen päättyminen] = \"elokuu\",Liidin_tiedot[Painotettu ennuste],0),\"\"),\"\")","v":""},{"$f":"IFERROR(IF(Liidin_tiedot[Ennusteen päättyminen] <>\"\",IF(Liidin_tiedot[Ennusteen päättyminen] = \"syyskuu\",Liidin_tiedot[Painotettu ennuste],0),\"\"),\"\")","v":""},{"$f":"IFERROR(IF(Liidin_tiedot[Ennusteen päättyminen] <>\"\",IF(Liidin_tiedot[Ennusteen päättyminen] = \"lokakuu\",Liidin_tiedot[Painotettu ennuste],0),\"\"),\"\")","v":""},{"$f":"IFERROR(IF(Liidin_tiedot[Ennusteen päättyminen] <>\"\",IF(Liidin_tiedot[Ennusteen päättyminen] = \"marraskuu\",Liidin_tiedot[Painotettu ennuste],0),\"\"),\"\")","v":""},{"$f":"IFERROR(IF(Liidin_tiedot[Ennusteen päättyminen] <>\"\",IF(Liidin_tiedot[Ennusteen päättyminen] = \"joulukuu\",Liidin_tiedot[Painotettu ennuste],0),\"\"),\"\")","v":""}]
[null,"Yhteensä",{"$f":"SUBTOTAL(109,Ennustettu_myynti[tammikuun\nennuste])","v":{"v":270000,"d":"270,000 €"}},{"$f":"SUBTOTAL(109,Ennustettu_myynti[helmikuun \nennuste])","v":{"v":20000,"d":"20,000 €"}},{"$f":"SUBTOTAL(109,Ennustettu_myynti[maaliskuun \nennuste])","v":{"v":20000,"d":"20,000 €"}},{"$f":"SUBTOTAL(109,Ennustettu_myynti[huhtikuun \nennuste])","v":{"v":0,"d":"0 €"}},{"$f":"SUBTOTAL(109,Ennustettu_myynti[toukokuun \nennuste])","v":{"v":0,"d":"0 €"}},{"$f":"SUBTOTAL(109,Ennustettu_myynti[kesäkuun \nennuste])","v":{"v":0,"d":"0 €"}},{"$f":"SUBTOTAL(109,Ennustettu_myynti[heinäkuun ennuste])","v":{"v":0,"d":"0 €"}},{"$f":"SUBTOTAL(109,Ennustettu_myynti[elokuun \nennuste])","v":{"v":0,"d":"0 €"}},{"$f":"SUBTOTAL(109,Ennustettu_myynti[syyskuun \nennuste])","v":{"v":0,"d":"0 €"}},{"$f":"SUBTOTAL(109,Ennustettu_myynti[lokakuun \nennuste])","v":{"v":0,"d":"0 €"}},{"$f":"SUBTOTAL(109,Ennustettu_myynti[marraskuun \nennuste])","v":{"v":0,"d":"0 €"}},{"$f":"SUBTOTAL(109,Ennustettu_myynti[joulukuun \nennuste])","v":{"v":0,"d":"0 €"}}]
[null,"Kumulatiivinen summa",{"$f":"C20","v":{"v":270000,"d":"270,000 €"}},{"$f":"C21+D20","v":{"v":290000,"d":"290,000 €"}},{"$f":"D21+E20","v":{"v":310000,"d":"310,000 €"}},{"$f":"E21+F20","v":{"v":310000,"d":"310,000 €"}},{"$f":"F21+G20","v":{"v":310000,"d":"310,000 €"}},{"$f":"G21+H20","v":{"v":310000,"d":"310,000 €"}},{"$f":"H21+I20","v":{"v":310000,"d":"310,000 €"}},{"$f":"I21+J20","v":{"v":310000,"d":"310,000 €"}},{"$f":"J21+K20","v":{"v":310000,"d":"310,000 €"}},{"$f":"K21+L20","v":{"v":310000,"d":"310,000 €"}},{"$f":"L21+M20","v":{"v":310000,"d":"310,000 €"}},{"$f":"M21+N20","v":{"v":310000,"d":"310,000 €"}}]

{"sheet":"Kuukausit. painotettu ennuste","index":2,"n_rows":3,"n_cols":2,"rows_kept":3}
[null,{"$f":"Yrityksen_nimi","v":"Yrityksen nimi"}]
[null,"Kuukausit. painotettu ennuste"]
[null," "]